[Event "Kvibergspelen September 2019"]
[Site "Prioritet Serneke Arena, Krutvagen 2, Gothenburg, Sweden"]
[Date "2019.09.29"]
[Round "8.3"]
[White "Blomqvist, Erik"]
[Black "Andersson, Lars"]
[Result "1-0"]
[TimeControl "15 minutes + 5 seconds per move from move one (Round 1 - 4) / 90 minutes + 30 seconds per move from move one (Round 5 - 8)"]
[WhiteTitle "GM"]
[WhiteFideId "1709437"]
[BlackFideId "1706772"]
[WhiteElo "2519"]
[BlackElo "2029"]

1. e4 {[%clk 01:30:55]} {[%emt 00:00:03]} c6 {[%clk 01:30:50]} {[%emt
00:00:12]} 2. d4 {[%clk 01:31:00]} {[%emt 00:00:25]} d5 {[%clk 01:31:15]}
{[%emt 00:00:05]} 3. exd5 {[%clk 01:31:03]} {[%emt 00:00:26]} cxd5 {[%clk
01:31:39]} {[%emt 00:00:06]} 4. Bd3 {[%clk 01:31:27]} {[%emt 00:00:05]} Nc6
{[%clk 01:31:50]} {[%emt 00:00:20]} 5. c3 {[%clk 01:31:48]} {[%emt 00:00:08]}
g6 {[%clk 01:28:04]} {[%emt 00:04:16]} 6. h3 {[%clk 01:31:14]} {[%emt
00:01:04]} Bg7 {[%clk 01:24:38]} {[%emt 00:03:57]} 7. Nf3 {[%clk 01:30:53]}
{[%emt 00:00:50]} Nf6 {[%clk 01:24:02]} {[%emt 00:01:07]} 8. O-O {[%clk
01:30:38]} {[%emt 00:00:44]} O-O {[%clk 01:15:43]} {[%emt 00:08:50]} 9. Re1
{[%clk 01:30:10]} {[%emt 00:00:58]} Qc7 {[%clk 01:09:25]} {[%emt 00:06:49]} 10.
Be3 {[%clk 01:28:28]} {[%emt 00:02:12]} Bd7 {[%clk 00:55:29]} {[%emt 00:14:26]}
11. Nbd2 {[%clk 01:27:40]} {[%emt 00:01:17]} Rfe8 {[%clk 00:52:37]} {[%emt
00:03:23]} 12. Nb3 {[%clk 01:17:45]} {[%emt 00:10:25]} Rad8 {[%clk 00:45:10]}
{[%emt 00:07:57]} 13. Bf1 {[%clk 01:14:45]} {[%emt 00:03:30]} Nh5 {[%clk
00:39:07]} {[%emt 00:06:33]} 14. Nc5 {[%clk 01:09:46]} {[%emt 00:05:28]} Bc8
{[%clk 00:37:30]} {[%emt 00:02:08]} 15. Nd3 {[%clk 01:09:34]} {[%emt 00:00:42]}
Na5 {[%clk 00:32:34]} {[%emt 00:05:27]} 16. b3 {[%clk 01:07:36]} {[%emt
00:02:27]} Nc6 {[%clk 00:31:00]} {[%emt 00:02:05]} 17. a4 {[%clk 01:04:50]}
{[%emt 00:03:16]} Bf5 {[%clk 00:27:42]} {[%emt 00:03:47]} 18. b4 {[%clk
00:59:15]} {[%emt 00:06:05]} Bxd3 {[%clk 00:24:22]} {[%emt 00:03:50]} 19. Qxd3
{[%clk 00:57:44]} {[%emt 00:02:00]} Nf6 {[%clk 00:16:47]} {[%emt 00:08:06]} 20.
Rac1 {[%clk 00:56:36]} {[%emt 00:01:38]} Qd7 {[%clk 00:13:04]} {[%emt
00:04:12]} 21. a5 {[%clk 00:50:26]} {[%emt 00:06:41]} a6 {[%clk 00:12:48]}
{[%emt 00:00:47]} 22. Ne5 {[%emt 00:05:40]} Qe6 {[%clk 00:09:27]} {[%emt
00:00:12]} 23. Qb1 {[%clk 00:36:58]} {[%emt 00:12:26]} Nxe5 {[%clk 00:05:21]}
{[%emt 00:04:37]} 24. dxe5 {[%clk 00:37:21]} {[%emt 00:00:06]} Nd7 {[%clk
00:04:33]} {[%emt 00:01:18]} 25. f4 {[%clk 00:34:15]} {[%emt 00:03:36]} Rc8
{[%clk 00:04:34]} {[%emt 00:00:29]} 26. Be2 {[%clk 00:31:55]} {[%emt 00:02:49]}
Red8 {[%clk 00:03:34]} {[%emt 00:01:31]} 27. Bf3 {[%clk 00:30:35]} {[%emt
00:01:49]} Nb8 {[%clk 00:03:27]} {[%emt 00:00:37]} 28. Bg4 {[%clk 00:29:40]}
{[%emt 00:01:24]} 1-0

[Event "Kvibergspelen September 2019"]
[Site "Prioritet Serneke Arena, Krutvagen 2, Gothenburg, Sweden"]
[Date "2019.09.29"]
[Round "8.4"]
[White "Pantzar, Milton"]
[Black "Akesson, Ralf"]
[Result "1-0"]
[TimeControl "15 minutes + 5 seconds per move from move one (Round 1 - 4) / 90 minutes + 30 seconds per move from move one (Round 5 - 8)"]
[WhiteTitle "FM"]
[BlackTitle "GM"]
[WhiteFideId "1721003"]
[BlackFideId "1700120"]
[WhiteElo "2376"]
[BlackElo "2367"]

1. d4 {[%clk 01:30:59]} Nf6 {[%clk 01:28:36]} {[%emt 00:02:25]} 2. c4 {[%clk
01:31:22]} {[%emt 00:00:07]} e6 {[%clk 01:26:37]} {[%emt 00:02:29]} 3. Nc3
{[%clk 01:31:43]} {[%emt 00:00:08]} Bb4 {[%clk 01:26:28]} {[%emt 00:00:38]} 4.
e3 {[%clk 01:31:44]} {[%emt 00:00:30]} O-O {[%clk 01:25:55]} {[%emt 00:01:03]}
5. Bd3 {[%clk 01:31:59]} {[%emt 00:00:15]} d5 {[%clk 01:25:17]} {[%emt
00:01:08]} 6. cxd5 {[%clk 01:32:14]} {[%emt 00:00:15]} exd5 {[%clk 01:24:49]}
{[%emt 00:00:58]} 7. Nge2 {[%clk 01:32:32]} {[%emt 00:00:12]} Re8 {[%clk
01:22:45]} {[%emt 00:02:34]} 8. O-O {[%clk 01:32:42]} {[%emt 00:00:20]} Bd6
{[%clk 01:20:55]} {[%emt 00:02:20]} 9. Nf4 {[%clk 01:31:53]} {[%emt 00:01:19]}
Bxf4 {[%clk 01:13:28]} {[%emt 00:07:56]} 10. exf4 {[%clk 01:32:19]} {[%emt
00:00:05]} Nc6 {[%clk 01:13:24]} {[%emt 00:00:34]} 11. Be3 {[%clk 01:31:58]}
{[%emt 00:00:51]} Ne7 {[%clk 01:11:44]} {[%emt 00:02:10]} 12. f3 {[%clk
01:27:48]} {[%emt 00:04:41]} Bf5 {[%clk 01:09:08]} {[%emt 00:03:05]} 13. g4
{[%clk 01:25:27]} {[%emt 00:02:51]} Bxd3 {[%clk 01:05:35]} {[%emt 00:04:03]} 14.
Qxd3 {[%clk 01:25:52]} {[%emt 00:00:04]} c6 {[%clk 01:04:14]} {[%emt 00:01:51]}
15. f5 {[%clk 01:21:46]} {[%emt 00:04:36]} Nc8 {[%clk 00:59:52]} {[%emt
00:04:52]} 16. Rfe1 {[%clk 01:13:05]} {[%emt 00:09:11]} Nd6 {[%clk 00:59:11]}
{[%emt 00:01:11]} 17. b3 {[%clk 01:11:03]} {[%emt 00:02:33]} Qd7 {[%clk
00:52:55]} {[%emt 00:06:46]} 18. Kg2 {[%clk 01:07:30]} {[%emt 00:04:02]} Re7
{[%clk 00:47:28]} {[%emt 00:05:57]} 19. Bf4 {[%clk 01:05:52]} {[%emt 00:02:07]}
Rae8 {[%clk 00:45:34]} {[%emt 00:02:24]} 20. Re5 {[%clk 01:03:47]} {[%emt
00:02:36]} h6 {[%clk 00:39:11]} {[%emt 00:06:51]} 21. Rae1 {[%clk 01:01:26]}
{[%emt 00:02:52]} Nh7 {[%clk 00:38:16]} {[%emt 00:01:24]} 22. Qd2 {[%clk
00:42:03]} {[%emt 00:19:54]} f6 {[%clk 00:33:01]} {[%emt 00:05:44]} 23. Rxe7
{[%clk 00:42:09]} {[%emt 00:00:24]} Rxe7 {[%clk 00:33:24]} {[%emt 00:00:07]} 24.
Rxe7 {[%clk 00:40:51]} {[%emt 00:01:48]} Qxe7 {[%clk 00:33:48]} {[%emt
00:00:06]} 25. Bg3 {[%clk 00:41:07]} {[%emt 00:00:14]} Nf8 {[%clk 00:32:03]}
{[%emt 00:02:15]} 26. Kf2 {[%clk 00:39:18]} {[%emt 00:02:20]} Nd7 {[%clk
00:22:53]} {[%emt 00:09:39]} 27. Ne2 {[%clk 00:37:53]} {[%emt 00:01:54]} Nc8
{[%clk 00:17:33]} {[%emt 00:05:50]} 28. Nf4 {[%clk 00:32:54]} {[%emt 00:05:30]}
Nf8 {[%clk 00:17:12]} {[%emt 00:00:51]} 29. h4 {[%clk 00:32:10]} {[%emt
00:01:14]} Kf7 {[%clk 00:15:50]} {[%emt 00:01:51]} 30. Qa5 {[%clk 00:24:21]}
{[%emt 00:08:21]} Qd7 {[%clk 00:13:48]} {[%emt 00:02:32]} 31. h5 {[%clk
00:16:50]} {[%emt 00:08:01]} Ke8 {[%clk 00:11:35]} {[%emt 00:02:43]} 32. Ng6
{[%clk 00:15:50]} {[%emt 00:01:31]} Kf7 {[%clk 00:11:21]} {[%emt 00:00:43]} 33.
Qb4 {[%clk 00:14:52]} {[%emt 00:01:28]} Nh7 {[%clk 00:11:26]} {[%emt 00:00:25]}
34. a4 {[%clk 00:13:58]} {[%emt 00:01:24]} a6 {[%clk 00:11:35]} {[%emt
00:00:21]} 35. Bb8 {[%clk 00:11:27]} {[%emt 00:03:02]} Ke8 {[%clk 00:11:26]}
{[%emt 00:00:38]} 36. Bf4 {[%clk 00:09:49]} {[%emt 00:02:08]} Kf7 {[%clk
00:11:49]} {[%emt 00:00:08]} 37. Kg2 {[%clk 00:08:41]} {[%emt 00:01:38]} Kg8
{[%clk 00:11:54]} {[%emt 00:00:24]} 38. Bc1 {[%clk 00:08:32]} {[%emt 00:00:40]}
Qc7 {[%clk 00:06:59]} {[%emt 00:05:25]} 39. Ba3 {[%clk 00:07:43]} {[%emt
00:01:19]} b6 {[%clk 00:06:06]} {[%emt 00:01:23]} 40. Qe1 {[%clk 00:06:49]}
{[%emt 00:01:25]} Qd7 {[%clk 00:06:09]} {[%emt 00:00:27]} 41. f4 {[%clk
00:03:42]} {[%emt 00:03:37]} Kf7 {[%clk 00:05:52]} {[%emt 00:00:46]} 42. a5
{[%clk 00:03:55]} {[%emt 00:00:17]} b5 {[%clk 00:05:28]} {[%emt 00:00:54]} 43.
Bc5 {[%clk 00:02:41]} {[%emt 00:01:45]} Nd6 {[%clk 00:05:39]} {[%emt 00:00:18]}
44. Nh8+ {[%clk 00:01:43]} {[%emt 00:01:28]} Kg8 {[%clk 00:04:49]} {[%emt
00:01:19]} 45. Qe6+ {[%clk 00:01:09]} {[%emt 00:01:05]} Qxe6 {[%clk 00:05:12]}
{[%emt 00:00:07]} 46. fxe6 {[%clk 00:01:38]} {[%emt 00:00:02]} Nc8 {[%clk
00:05:20]} {[%emt 00:00:22]} 47. Ng6 {[%clk 00:01:46]} {[%emt 00:00:22]} f5
{[%clk 00:05:39]} {[%emt 00:00:10]} 48. gxf5 {[%clk 00:01:53]} {[%emt
00:00:24]} Nf6 {[%clk 00:06:01]} {[%emt 00:00:08]} 49. Kf3 {[%clk 00:01:37]}
{[%emt 00:00:46]} Nxh5 {[%clk 00:05:49]} {[%emt 00:00:41]} 50. Ne5 {[%clk
00:01:55]} {[%emt 00:00:13]} Nf6 {[%clk 00:06:13]} {[%emt 00:00:05]} 51. Nxc6
{[%clk 00:02:09]} {[%emt 00:00:17]} Ne4 {[%clk 00:06:34]} {[%emt 00:00:08]} 52.
b4 {[%clk 00:01:18]} {[%emt 00:01:22]} h5 {[%clk 00:06:14]} {[%emt 00:00:50]}
53. Nb8 {[%clk 00:01:13]} {[%emt 00:00:36]} h4 {[%clk 00:05:44]} {[%emt
00:00:59]} 54. Nxa6 {[%clk 00:01:04]} {[%emt 00:00:39]} h3 {[%clk 00:04:32]}
{[%emt 00:01:42]} 55. Nc7 {[%clk 00:01:23]} {[%emt 00:00:11]} Nxc5 {[%clk
00:04:06]} {[%emt 00:00:56]} 56. bxc5 {[%clk 00:01:37]} {[%emt 00:00:16]} b4
{[%clk 00:04:29]} {[%emt 00:00:07]} 57. Nxd5 {[%clk 00:02:02]} {[%emt
00:00:05]} b3 {[%clk 00:04:53]} {[%emt 00:00:05]} 58. Nc3 {[%clk 00:02:17]}
{[%emt 00:00:15]} 1-0

[Event "Kvibergspelen September 2019"]
[Site "Prioritet Serneke Arena, Krutvagen 2, Gothenburg, Sweden"]
[Date "2019.09.29"]
[Round "8.5"]
[White "Carlsson, Ludvig"]
[Black "Frisk, Ellinor"]
[Result "1/2-1/2"]
[TimeControl "15 minutes + 5 seconds per move from move one (Round 1 - 4) / 90 minutes + 30 seconds per move from move one (Round 5 - 8)"]
[WhiteTitle "CM"]
[BlackTitle "WIM"]
[WhiteFideId "1727010"]
[BlackFideId "1708481"]
[WhiteElo "2066"]
[BlackElo "2227"]

1. d4 {[%clk 01:30:14]} {[%emt 00:00:44]} d5 {[%clk 01:30:57]} {[%emt
00:00:05]} 2. c4 {[%clk 01:30:05]} {[%emt 00:00:39]} c6 {[%clk 01:31:24]}
{[%emt 00:00:04]} 3. Nc3 {[%clk 01:30:20]} {[%emt 00:00:14]} e5 {[%clk
01:31:23]} {[%emt 00:00:31]} 4. dxe5 {[%clk 01:28:15]} {[%emt 00:02:35]} d4
{[%clk 01:31:46]} {[%emt 00:00:08]} 5. Ne4 {[%clk 01:28:27]} {[%emt 00:00:18]}
Qa5+ {[%clk 01:32:05]} {[%emt 00:00:12]} 6. Bd2 {[%clk 01:28:50]} {[%emt
00:00:06]} Qxe5 {[%clk 01:32:29]} {[%emt 00:00:07]} 7. Ng3 {[%clk 01:29:02]}
{[%emt 00:00:17]} Nf6 {[%clk 01:32:19]} {[%emt 00:00:40]} 8. Nf3 {[%clk
01:26:20]} {[%emt 00:03:11]} Qd6 {[%clk 01:32:47]} {[%emt 00:00:03]} 9. Qc2
{[%clk 01:25:52]} {[%emt 00:00:57]} Be7 {[%clk 01:32:27]} {[%emt 00:00:51]} 10.
O-O-O {[%clk 01:21:49]} {[%emt 00:04:32]} c5 {[%clk 01:31:23]} {[%emt
00:01:35]} 11. e3 {[%clk 01:17:59]} {[%emt 00:04:19]} dxe3 {[%clk 01:31:11]}
{[%emt 00:00:43]} 12. Bxe3 {[%clk 01:14:27]} {[%emt 00:04:01]} Qb6 {[%clk
01:31:14]} {[%emt 00:00:27]} 13. Nf5 {[%clk 01:08:33]} {[%emt 00:06:24]} Bxf5
{[%clk 01:28:35]} {[%emt 00:03:11]} 14. Qxf5 {[%clk 01:08:52]} {[%emt
00:00:09]} O-O {[%clk 01:26:17]} {[%emt 00:02:49]} 15. Ne5 {[%clk 00:54:16]}
{[%emt 00:15:05]} Nc6 {[%clk 01:23:41]} {[%emt 00:03:07]} 16. Nxc6 {[%clk
00:53:56]} {[%emt 00:00:50]} Qxc6 {[%clk 01:23:55]} {[%emt 00:00:17]} 17. Be2
{[%clk 00:54:17]} {[%emt 00:00:09]} Rad8 {[%clk 01:21:08]} {[%emt 00:03:17]} 18.
Qf3 {[%clk 00:52:08]} {[%emt 00:02:37]} Qa6 {[%clk 01:13:39]} {[%emt 00:08:00]}
19. Kb1 {[%clk 00:51:55]} {[%emt 00:00:42]} Rfe8 {[%clk 01:08:59]} {[%emt
00:05:12]} 20. Bd3 {[%clk 00:48:33]} {[%emt 00:03:51]} g6 {[%clk 01:02:27]}
{[%emt 00:07:02]} 21. Rd2 {[%clk 00:36:26]} {[%emt 00:12:37]} Nd7 {[%clk
00:58:33]} {[%emt 00:04:24]} 22. Be4 {[%clk 00:27:50]} {[%emt 00:09:06]} Ne5
{[%clk 00:51:31]} {[%emt 00:07:33]} 23. Rxd8 {[%clk 00:26:57]} {[%emt
00:01:23]} Rxd8 {[%clk 00:51:40]} {[%emt 00:00:22]} 24. Bxb7 {[%clk 00:26:58]}
{[%emt 00:00:29]} Qb6 {[%clk 00:51:12]} {[%emt 00:00:58]} 25. Qe4 {[%clk
00:26:50]} {[%emt 00:00:37]} Nd3 {[%clk 00:30:38]} {[%emt 00:21:05]} 26. Bc1
{[%clk 00:23:34]} {[%emt 00:03:45]} Nxb2 {[%clk 00:16:51]} {[%emt 00:14:18]} 27.
Qxe7 {[%clk 00:21:50]} {[%emt 00:02:14]} Nxc4+ {[%clk 00:16:54]} {[%emt
00:00:27]} 28. Ka1 {[%clk 00:21:31]} {[%emt 00:00:49]} Rb8 {[%clk 00:16:06]}
{[%emt 00:01:18]} 29. Re1 {[%clk 00:21:40]} {[%emt 00:00:21]} Qxb7 {[%clk
00:13:18]} {[%emt 00:03:19]} 30. Qxb7 {[%clk 00:21:21]} {[%emt 00:00:50]} Rxb7
{[%clk 00:13:46]} {[%emt 00:00:01]} 31. Bh6 {[%clk 00:21:40]} {[%emt 00:00:10]}
f5 {[%clk 00:13:07]} {[%emt 00:01:11]} 32. f3 {[%clk 00:14:54]} {[%emt
00:07:15]} Kf7 {[%clk 00:11:07]} {[%emt 00:02:31]} 33. Bg5 {[%clk 00:15:12]}
{[%emt 00:00:12]} Na3 {[%clk 00:10:47]} {[%emt 00:00:50]} 34. Rc1 {[%clk
00:15:35]} {[%emt 00:00:06]} Ke6 {[%clk 00:10:07]} {[%emt 00:01:10]} 35. Be3
{[%clk 00:14:49]} {[%emt 00:01:16]} c4 {[%clk 00:09:01]} {[%emt 00:01:37]} 36.
Bc5 {[%clk 00:13:55]} {[%emt 00:01:23]} Nb5 {[%clk 00:09:20]} {[%emt 00:00:11]}
37. Rxc4 {[%clk 00:13:59]} {[%emt 00:00:26]} Kd5 {[%clk 00:08:16]} {[%emt
00:01:34]} 38. Rc1 {[%clk 00:14:21]} {[%emt 00:00:07]} Rc7 {[%clk 00:08:28]}
{[%emt 00:00:19]} 39. Ba3 {[%clk 00:13:55]} {[%emt 00:00:55]} Rxc1+ {[%clk
00:08:12]} {[%emt 00:00:47]} 40. Bxc1 {[%clk 00:14:19]} {[%emt 00:00:05]} Kc4
{[%clk 00:08:36]} {[%emt 00:00:07]} 41. Be3 {[%clk 00:13:12]} {[%emt 00:01:37]}
a6 {[%clk 00:08:15]} {[%emt 00:00:51]} 42. Kb2 {[%clk 00:13:24]} {[%emt
00:00:17]} Kd3 {[%clk 00:07:29]} {[%emt 00:01:17]} 43. Bc5 {[%clk 00:13:23]}
{[%emt 00:00:30]} Kc4 {[%clk 00:05:23]} {[%emt 00:02:36]} 44. Bf2 {[%clk
00:11:41]} {[%emt 00:02:11]} Nc3 {[%clk 00:05:19]} {[%emt 00:00:35]} 45. Ba7
{[%clk 00:11:37]} {[%emt 00:00:35]} Ne2 {[%clk 00:04:45]} {[%emt 00:01:04]} 46.
Bb8 {[%clk 00:10:46]} {[%emt 00:01:20]} Nc3 {[%clk 00:04:41]} {[%emt 00:00:34]}
47. Ba7 {[%clk 00:08:46]} {[%emt 00:02:30]} Nd5 {[%clk 00:05:05]} {[%emt
00:00:06]} 48. Ka3 {[%clk 00:08:59]} {[%emt 00:00:17]} h5 {[%clk 00:03:43]}
{[%emt 00:01:52]} 49. Bf2 {[%clk 00:07:54]} {[%emt 00:01:33]} Nf4 {[%clk
00:03:18]} {[%emt 00:00:56]} 50. g4 {[%clk 00:08:15]} {[%emt 00:00:09]} Nd3
{[%clk 00:02:57]} {[%emt 00:00:52]} 51. gxh5 {[%clk 00:08:13]} {[%emt
00:00:32]} gxh5 {[%clk 00:03:13]} {[%emt 00:00:13]} 52. Bg3 {[%clk 00:08:38]}
{[%emt 00:00:04]} Nc5 {[%clk 00:02:30]} {[%emt 00:01:14]} 53. Bb8 {[%clk
00:08:08]} {[%emt 00:01:00]} Kd3 {[%clk 00:02:23]} {[%emt 00:00:37]} 54. Kb4
{[%clk 00:08:10]} {[%emt 00:00:27]} Nb7 {[%clk 00:02:45]} {[%emt 00:00:09]} 55.
Bc7 {[%clk 00:07:35]} {[%emt 00:01:05]} Ke3 {[%clk 00:02:57]} {[%emt 00:00:18]}
56. Kc4 {[%clk 00:07:19]} {[%emt 00:00:45]} Kxf3 {[%clk 00:01:46]} {[%emt
00:01:40]} 57. Kd5 {[%clk 00:07:42]} {[%emt 00:00:07]} f4 {[%clk 00:01:19]}
{[%emt 00:00:57]} 58. Kc6 {[%clk 00:06:23]} {[%emt 00:01:48]} Na5+ {[%clk
00:01:27]} {[%emt 00:00:23]} 59. Bxa5 {[%clk 00:06:44]} {[%emt 00:00:09]} Ke2
{[%clk 00:00:45]} {[%emt 00:01:13]} 60. Kb7 {[%clk 00:05:43]} {[%emt 00:01:30]}
f3 {[%clk 00:01:02]} {[%emt 00:00:13]} 61. Bb6 {[%clk 00:06:08]} {[%emt
00:00:05]} h4 {[%clk 00:00:54]} {[%emt 00:00:39]} 62. Kxa6 {[%clk 00:06:07]}
{[%emt 00:00:30]} h3 {[%clk 00:01:05]} {[%emt 00:00:19]} 63. Kb5 {[%clk
00:06:20]} {[%emt 00:00:17]} f2 {[%clk 00:01:15]} {[%emt 00:00:20]} 64. Bxf2
{[%clk 00:06:45]} {[%emt 00:00:04]} Kxf2 {[%clk 00:01:43]} {[%emt 00:00:02]} 65.
a4 {[%clk 00:07:10]} {[%emt 00:00:06]} Kg2 {[%clk 00:02:10]} {[%emt 00:00:03]}
66. a5 {[%clk 00:07:37]} {[%emt 00:00:03]} Kxh2 {[%clk 00:02:37]} {[%emt
00:00:02]} 67. a6 {[%clk 00:07:59]} {[%emt 00:00:08]} Kg1 {[%clk 00:02:59]}
{[%emt 00:00:08]} 68. a7 {[%clk 00:08:25]} {[%emt 00:00:05]} h2 {[%clk
00:03:27]} {[%emt 00:00:02]} 69. a8=Q {[%clk 00:08:48]} {[%emt 00:00:07]} h1=Q
{[%clk 00:03:49]} {[%emt 00:00:08]} 70. Qxh1+ {[%clk 00:08:58]} {[%emt
00:00:20]} Kxh1 {[%clk 00:04:15]} {[%emt 00:00:05]} 1/2-1/2

[Event "Kvibergspelen September 2019"]
[Site "Prioritet Serneke Arena, Krutvagen 2, Gothenburg, Sweden"]
[Date "2019.09.29"]
[Round "8.6"]
[White "Nygren, Kim"]
[Black "Lindberg, Bengt"]
[Result "0-1"]
[TimeControl "15 minutes + 5 seconds per move from move one (Round 1 - 4) / 90 minutes + 30 seconds per move from move one (Round 5 - 8)"]
[BlackTitle "IM"]
[WhiteFideId "1706136"]
[BlackFideId "1700359"]
[WhiteElo "2171"]
[BlackElo "2397"]

1. d4 {[%clk 01:30:51]} {[%emt 00:00:09]} Nf6 {[%clk 01:31:19]} {[%emt
00:00:10]} 2. c4 {[%clk 01:31:06]} {[%emt 00:00:15]} e6 {[%clk 01:31:38]}
{[%emt 00:00:09]} 3. Nc3 {[%clk 01:31:14]} {[%emt 00:00:23]} Bb4 {[%clk
01:31:55]} {[%emt 00:00:13]} 4. Qb3 {[%clk 01:31:19]} {[%emt 00:00:25]} Ba5
{[%clk 01:30:21]} {[%emt 00:02:03]} 5. Bg5 {[%clk 01:31:08]} {[%emt 00:00:41]}
c6 {[%clk 01:27:26]} {[%emt 00:03:26]} 6. O-O-O {[%clk 01:28:33]} {[%emt
00:03:05]} d5 {[%clk 01:25:27]} {[%emt 00:02:28]} 7. e4 {[%clk 01:26:52]}
{[%emt 00:02:11]} Bxc3 {[%clk 01:21:37]} {[%emt 00:04:20]} 8. bxc3 {[%clk
01:27:01]} {[%emt 00:00:21]} h6 {[%clk 01:20:21]} {[%emt 00:01:46]} 9. Bxf6
{[%clk 01:26:37]} {[%emt 00:00:55]} Qxf6 {[%clk 01:20:43]} {[%emt 00:00:07]} 10.
e5 {[%clk 01:23:18]} {[%emt 00:03:49]} Qf4+ {[%clk 01:03:39]} {[%emt 00:17:33]}
11. Rd2 {[%clk 01:22:30]} {[%emt 00:01:19]} Qg5 {[%clk 00:55:22]} {[%emt
00:08:46]} 12. h4 {[%clk 01:19:56]} {[%emt 00:03:04]} Qe7 {[%clk 00:55:45]}
{[%emt 00:00:07]} 13. Rh3 {[%clk 01:19:56]} {[%emt 00:00:30]} c5 {[%clk
00:54:50]} {[%emt 00:01:26]} 14. Rg3 {[%clk 01:18:53]} {[%emt 00:01:34]} O-O
{[%clk 00:49:05]} {[%emt 00:06:14]} 15. Bd3 {[%clk 01:14:08]} {[%emt 00:05:15]}
cxd4 {[%clk 00:43:53]} {[%emt 00:05:43]} 16. Bb1 {[%clk 01:12:04]} {[%emt
00:02:34]} dxc4 {[%clk 00:27:57]} {[%emt 00:16:26]} 17. Qxc4 {[%clk 01:11:03]}
{[%emt 00:01:31]} Nd7 {[%clk 00:25:40]} {[%emt 00:02:46]} 18. Rxd4 {[%clk
01:01:44]} {[%emt 00:09:50]} Nxe5 {[%clk 00:22:09]} {[%emt 00:04:01]} 19. Qe2
{[%clk 01:00:45]} {[%emt 00:01:29]} Qa3+ {[%clk 00:19:39]} {[%emt 00:02:59]} 20.
Kd1 {[%clk 01:00:10]} {[%emt 00:01:05]} Qc5 {[%clk 00:13:10]} {[%emt 00:06:58]}
21. Qh5 {[%clk 00:47:19]} {[%emt 00:13:22]} f5 {[%clk 00:12:23]} {[%emt
00:01:16]} 22. Qxh6 {[%clk 00:46:58]} {[%emt 00:00:52]} Qe7 {[%clk 00:12:47]}
{[%emt 00:00:05]} 23. Nh3 {[%clk 00:41:31]} {[%emt 00:05:59]} Rf6 {[%clk
00:09:55]} {[%emt 00:03:22]} 24. Qh5 {[%clk 00:37:54]} {[%emt 00:04:07]} Bd7
{[%clk 00:08:19]} {[%emt 00:02:06]} 25. Nf4 {[%clk 00:34:01]} {[%emt 00:04:22]}
Be8 {[%clk 00:06:15]} {[%emt 00:02:33]} 26. Qe2 {[%clk 00:32:23]} {[%emt
00:02:10]} Nc6 {[%clk 00:05:27]} {[%emt 00:01:18]} 27. Rdd3 {[%clk 00:30:18]}
{[%emt 00:02:35]} Bf7 {[%clk 00:05:13]} {[%emt 00:00:43]} 28. Ke1 {[%clk
00:29:16]} {[%emt 00:01:33]} Rh6 {[%clk 00:03:56]} {[%emt 00:01:47]} 29. h5
{[%clk 00:28:33]} {[%emt 00:01:14]} e5 {[%clk 00:04:02]} {[%emt 00:00:24]} 30.
Nd5 {[%clk 00:26:46]} {[%emt 00:02:16]} Qh4 {[%clk 00:03:43]} {[%emt 00:00:48]}
31. Rh3 {[%clk 00:24:29]} {[%emt 00:02:49]} Qg5 {[%clk 00:03:47]} {[%emt
00:00:24]} 32. Ne3 {[%clk 00:22:04]} {[%emt 00:02:56]} e4 {[%clk 00:02:55]}
{[%emt 00:01:22]} 33. Rd7 {[%clk 00:21:59]} {[%emt 00:00:36]} Ne5 {[%clk
00:02:35]} {[%emt 00:00:49]} 34. Rd4 {[%clk 00:12:11]} {[%emt 00:10:18]} Bxh5
{[%emt 00:02:33]} 35. Qb5 {[%clk 00:10:51]} {[%emt 00:01:12]} Re8 {[%clk
00:00:53]} {[%emt 00:00:46]} 36. Rg3 {[%clk 00:10:14]} {[%emt 00:01:09]} Qf6
{[%clk 00:00:58]} {[%emt 00:00:24]} 37. Bc2 {[%clk 00:08:38]} {[%emt 00:02:07]}
Bf7 {[%clk 00:00:52]} {[%emt 00:00:34]} 38. Bb3 {[%clk 00:08:48]} {[%emt
00:00:20]} Rf8 {[%clk 00:01:00]} {[%emt 00:00:23]} 39. Nd5 {[%clk 00:08:31]}
{[%emt 00:00:47]} Rh1+ {[%clk 00:00:56]} {[%emt 00:00:34]} 40. Ke2 {[%clk
00:08:14]} {[%emt 00:00:47]} Qh4 {[%clk 00:01:04]} {[%emt 00:00:22]} 41. Ne3
{[%clk 00:06:19]} {[%emt 00:02:25]} Qh5+ {[%clk 00:00:43]} {[%emt 00:00:51]} 42.
Kd2 {[%clk 00:06:19]} {[%emt 00:00:30]} f4 {[%clk 00:00:54]} {[%emt 00:00:19]}
43. Bxf7+ {[%clk 00:01:59]} {[%emt 00:04:50]} Nxf7 {[%clk 00:00:48]} {[%emt
00:00:36]} 44. Qxh5 {[%clk 00:01:10]} {[%emt 00:01:19]} Rxh5 {[%clk 00:01:01]}
{[%emt 00:00:16]} 45. Rg4 {[%clk 00:01:11]} {[%emt 00:00:30]} Ne5 {[%clk
00:01:00]} {[%emt 00:00:31]} 0-1